[Event "*** SCC Grand Prix: Titled Tuesday Blitz"]
[Site "Chess.com"]
[Date "2020.06.09"]
[Round "10"]
[White "MFBerna"]
[Black "DACF2905"]
[Result "1-0"]
[WhiteElo "2403"]
[BlackElo "2237"]
[TimeControl "180+1"]
[EndTime "10:58:53 PDT"]
[Termination "MFBerna won by resignation"]

1. d4 {[%clk 0:03:00.9]} 1... Nf6 {[%clk 0:02:59.4]} 2. c4 {[%clk 0:03:00.6]}
2... e6 {[%clk 0:02:59.3]} 3. Nf3 {[%clk 0:03:00]} 3... b6 {[%clk 0:02:57.5]} 4.
g3 {[%clk 0:02:59.4]} 4... Bb7 {[%clk 0:02:58]} 5. Bg2 {[%clk 0:02:59.9]} 5...
c5 {[%clk 0:02:57.1]} 6. O-O {[%clk 0:02:58.7]} 6... d5 {[%clk 0:02:56]} 7. cxd5
{[%clk 0:02:56.5]} 7... Bxd5 {[%clk 0:02:53.7]} 8. Nc3 {[%clk 0:02:55]} 8... Bb7
{[%clk 0:02:53.6]} 9. dxc5 {[%clk 0:02:38.6]} 9... Qxd1 {[%clk 0:02:51.8]} 10.
Rxd1 {[%clk 0:02:39.5]} 10... Bxc5 {[%clk 0:02:51.6]} 11. Nb5 {[%clk 0:02:34.4]}
11... Na6 {[%clk 0:02:47.9]} 12. Be3 {[%clk 0:02:12.5]} 12... Ke7 {[%clk
0:01:51.4]} 13. Bxc5+ {[%clk 0:02:07.3]} 13... Nxc5 {[%clk 0:01:51.4]} 14. Ne5
{[%clk 0:01:58.2]} 14... a6 {[%clk 0:01:44.5]} 15. Bxb7 {[%clk 0:01:40.7]} 15...
Nxb7 {[%clk 0:01:42.8]} 16. Nc6+ {[%clk 0:01:36.8]} 16... Kf8 {[%clk 0:01:41]}
17. Nd6 {[%clk 0:01:04.8]} 17... Nxd6 {[%clk 0:01:39.2]} 18. Rxd6 {[%clk
0:01:05.7]} 18... Ne4 {[%clk 0:01:25.3]} 19. Rd4 {[%clk 0:00:59.1]} 19... Nf6
{[%clk 0:01:09.8]} 20. Rad1 {[%clk 0:00:49.5]} 20... g6 {[%clk 0:01:09.9]} 21.
Rd6 {[%clk 0:00:44.2]} 21... Kg7 {[%clk 0:00:59.5]} 22. Ne5 {[%clk 0:00:41.6]}
22... b5 {[%clk 0:00:57.6]} 23. Rc6 {[%clk 0:00:33.5]} 23... Rhc8 {[%clk
0:00:55.5]} 24. Rdc1 {[%clk 0:00:31.5]} 24... Rxc6 {[%clk 0:00:55.3]} 25. Rxc6
{[%clk 0:00:32.4]} 25... Ra7 {[%clk 0:00:52.6]} 26. f3 {[%clk 0:00:30]} 26...
Nd5 {[%clk 0:00:43.1]} 27. a3 {[%clk 0:00:25.8]} 27... f6 {[%clk 0:00:37.9]} 28.
Nd3 {[%clk 0:00:23.7]} 28... a5 {[%clk 0:00:20.6]} 29. Rxe6 {[%clk 0:00:21.8]}
29... b4 {[%clk 0:00:21]} 30. Kf2 {[%clk 0:00:19.2]} 30... bxa3 {[%clk
0:00:20.7]} 31. bxa3 {[%clk 0:00:20.1]} 31... Kf7 {[%clk 0:00:19.8]} 32. Rd6
{[%clk 0:00:19.1]} 32... Nc3 {[%clk 0:00:19.5]} 33. Rc6 {[%clk 0:00:14.4]} 33...
Nb5 {[%clk 0:00:19.4]} 34. a4 {[%clk 0:00:13.6]} 34... Nd4 {[%clk 0:00:19.5]}
35. Rb6 {[%clk 0:00:10.9]} 35... Rc7 {[%clk 0:00:17.7]} 36. Ra6 {[%clk
0:00:09.1]} 36... Rc2 {[%clk 0:00:17.2]} 37. Ra7+ {[%clk 0:00:09]} 37... Kf8
{[%clk 0:00:16.5]} 38. Nf4 {[%clk 0:00:07.1]} 38... g5 {[%clk 0:00:16.2]} 39.
Rd7 {[%clk 0:00:04.8]} 39... Nb3 {[%clk 0:00:08.8]} 40. Nd5 {[%clk 0:00:03.6]}
40... Nc1 {[%clk 0:00:07.4]} 41. Nxf6 {[%clk 0:00:03.4]} 41... Rxe2+ {[%clk
0:00:06.8]} 42. Kf1 {[%clk 0:00:03.5]} 42... h6 {[%clk 0:00:07.1]} 43. Ng4
{[%clk 0:00:02.9]} 43... Rc2 {[%clk 0:00:06.6]} 44. Nxh6 {[%clk 0:00:02.6]}
44... Rxh2 {[%clk 0:00:06.7]} 45. Nf5 {[%clk 0:00:01.8]} 45... Ra2 {[%clk
0:00:06.3]} 46. Rd5 {[%clk 0:00:01.9]} 46... Rxa4 {[%clk 0:00:05.7]} 47. Kg2
{[%clk 0:00:02.1]} 47... Nd3 {[%clk 0:00:05.2]} 48. Ne3 {[%clk 0:00:01.2]} 48...
Ne1+ {[%clk 0:00:05.2]} 49. Kh3 {[%clk 0:00:01.3]} 49... Nxf3 {[%clk 0:00:05.1]}
50. Rf5+ {[%clk 0:00:02.2]} 50... Ke7 {[%clk 0:00:05.4]} 51. Rxf3 {[%clk
0:00:03.1]} 51... Ra3 {[%clk 0:00:05.3]} 52. Kg4 {[%clk 0:00:02.9]} 52... Ra4+
{[%clk 0:00:05]} 53. Kxg5 {[%clk 0:00:03]} 53... Re4 {[%clk 0:00:04.8]} 54. Nf5+
{[%clk 0:00:03.9]} 54... Ke6 {[%clk 0:00:04.8]} 55. g4 {[%clk 0:00:04.5]} 55...
a4 {[%clk 0:00:04.5]} 56. Re3 {[%clk 0:00:05]} 56... Ke5 {[%clk 0:00:03.7]} 57.
Rxe4+ {[%clk 0:00:05.1]} 57... Kxe4 {[%clk 0:00:04.1]} 58. Nd6+ {[%clk
0:00:05.5]} 58... Kd5 {[%clk 0:00:04]} 59. Nb5 {[%clk 0:00:06.4]} 59... Kc5
{[%clk 0:00:04]} 60. Na3 {[%clk 0:00:06.3]} 60... Kb4 {[%clk 0:00:04.3]} 61. Nb1
{[%clk 0:00:06.8]} 61... Kb3 {[%clk 0:00:04.4]} 62. Kf4 {[%clk 0:00:06.9]} 62...
Kb2 {[%clk 0:00:04.8]} 63. Nd2 {[%clk 0:00:07.4]} 63... Kc3 {[%clk 0:00:03.9]}
64. Ke3 {[%clk 0:00:06.6]} 64... a3 {[%clk 0:00:03.6]} 65. Nb1+ {[%clk
0:00:06.9]} 65... Kc4 {[%clk 0:00:03.1]} 66. Nxa3+ {[%clk 0:00:07.8]} 66... Kd5
{[%clk 0:00:03.8]} 67. Kf4 {[%clk 0:00:08.1]} 67... Ke6 {[%clk 0:00:04.7]} 68.
Kg5 {[%clk 0:00:08.6]} 68... Ke7 {[%clk 0:00:05.6]} 69. Kg6 {[%clk 0:00:08.9]}
69... Kf8 {[%clk 0:00:05.6]} 70. Kh7 {[%clk 0:00:09.5]} 70... Kf7 {[%clk
0:00:05.8]} 71. g5 {[%clk 0:00:10.4]} 71... Ke6 {[%clk 0:00:05.9]} 72. g6 {[%clk
0:00:11.3]} 1-0

[Event "*** SCC Grand Prix: Titled Tuesday Blitz"]
[Site "Chess.com"]
[Date "2020.06.09"]
[Round "10"]
[White "awesomevishesh"]
[Black "Khazieva_Elza"]
[Result "1-0"]
[WhiteElo "2394"]
[BlackElo "2234"]
[TimeControl "180+1"]
[EndTime "10:58:53 PDT"]
[Termination "awesomevishesh won on time"]

1. e4 {[%clk 0:02:49.6]} 1... c5 {[%clk 0:03:00]} 2. Nf3 {[%clk 0:02:49]} 2...
d6 {[%clk 0:03:00.4]} 3. Bb5+ {[%clk 0:02:48.3]} 3... Nd7 {[%clk 0:02:58.4]} 4.
O-O {[%clk 0:02:47]} 4... a6 {[%clk 0:02:58]} 5. Bd3 {[%clk 0:02:46.2]} 5... g6
{[%clk 0:02:55.1]} 6. c3 {[%clk 0:02:44.6]} 6... Bg7 {[%clk 0:02:55.3]} 7. Bc2
{[%clk 0:02:44.5]} 7... Ngf6 {[%clk 0:02:51.8]} 8. d4 {[%clk 0:02:44]} 8... O-O
{[%clk 0:02:50.8]} 9. Re1 {[%clk 0:02:43.3]} 9... Qc7 {[%clk 0:02:41.6]} 10.
Nbd2 {[%clk 0:02:33.5]} 10... b5 {[%clk 0:02:41.2]} 11. a4 {[%clk 0:02:22]}
11... Bb7 {[%clk 0:02:40]} 12. d5 {[%clk 0:02:17.6]} 12... e6 {[%clk 0:02:26.5]}
13. dxe6 {[%clk 0:02:14]} 13... fxe6 {[%clk 0:02:27.4]} 14. Ng5 {[%clk
0:02:13.9]} 14... Rae8 {[%clk 0:02:12.5]} 15. axb5 {[%clk 0:02:06.4]} 15... axb5
{[%clk 0:02:13.4]} 16. Nb3 {[%clk 0:01:54.1]} 16... h6 {[%clk 0:02:03.6]} 17.
Nf3 {[%clk 0:01:52.2]} 17... Ng4 {[%clk 0:01:53.3]} 18. h3 {[%clk 0:01:48.5]}
18... Nge5 {[%clk 0:01:53.2]} 19. Nxe5 {[%clk 0:01:47.9]} 19... Nxe5 {[%clk
0:01:52.3]} 20. f4 {[%clk 0:01:47.7]} 20... Nc4 {[%clk 0:01:34.5]} 21. Nd2
{[%clk 0:01:39.7]} 21... Nb6 {[%clk 0:01:28]} 22. Nf3 {[%clk 0:01:38.6]} 22...
b4 {[%clk 0:01:14.4]} 23. cxb4 {[%clk 0:01:11.4]} 23... cxb4 {[%clk 0:01:08.9]}
24. Nh4 {[%clk 0:01:10.7]} 24... g5 {[%clk 0:00:36.3]} 25. fxg5 {[%clk
0:01:06.9]} 25... hxg5 {[%clk 0:00:36]} 26. Bxg5 {[%clk 0:01:06.5]} 26... Bxb2
{[%clk 0:00:30.1]} 27. Rb1 {[%clk 0:01:02.6]} 27... Bc3 {[%clk 0:00:28.9]} 28.
Re3 {[%clk 0:00:55.8]} 28... Rf7 {[%clk 0:00:21.2]} 29. Rg3 {[%clk 0:00:50]}
29... Rg7 {[%clk 0:00:21.1]} 30. Qh5 {[%clk 0:00:49.5]} 30... Qf7 {[%clk
0:00:15.7]} 31. Qe2 {[%clk 0:00:36.9]} 31... Be5 {[%clk 0:00:09]} 32. Rg4 {[%clk
0:00:33.7]} 32... Qh5 {[%clk 0:00:06.7]} 33. Rxb4 {[%clk 0:00:31.6]} 33... Rxg5
{[%clk 0:00:06.2]} 34. Rxb6 {[%clk 0:00:26.4]} 34... Bd4+ {[%clk 0:00:06.3]} 35.
Kh2 {[%clk 0:00:19.6]} 35... Bxb6 {[%clk 0:00:06.4]} 36. Qb5 {[%clk 0:00:10.6]}
36... d5 {[%clk 0:00:03]} 37. Rxg5+ {[%clk 0:00:09.5]} 37... Qxg5 {[%clk
0:00:02.9]} 38. Qxe8+ {[%clk 0:00:10.4]} 38... Kg7 {[%clk 0:00:02.6]} 39. Qd7+
{[%clk 0:00:08.2]} 39... Kf6 {[%clk 0:00:02.8]} 40. Qxb7 {[%clk 0:00:02]} 40...
Qf4+ {[%clk 0:00:03.1]} 41. Kh1 {[%clk 0:00:01.8]} 41... Qc1+ {[%clk 0:00:02.5]}
42. Kh2 {[%clk 0:00:02.1]} 42... Qf4+ {[%clk 0:00:02.7]} 43. g3 {[%clk 0:00:02]}
43... Qf2+ {[%clk 0:00:02.9]} 44. Ng2 {[%clk 0:00:02.4]} 44... Qxc2 {[%clk
0:00:03]} 45. Qxb6 {[%clk 0:00:01.9]} 45... Qxe4 {[%clk 0:00:02.6]} 46. Qd8+
{[%clk 0:00:02]} 46... Kf7 {[%clk 0:00:02.5]} 47. Qh8 {[%clk 0:00:02.7]} 47...
d4 {[%clk 0:00:02.8]} 48. Qd8 {[%clk 0:00:02.8]} 48... d3 {[%clk 0:00:02.7]} 49.
Nf4 {[%clk 0:00:03.2]} 49... Qe3 {[%clk 0:00:01.7]} 50. Qxd3 {[%clk 0:00:03.5]}
50... Qf2+ {[%clk 0:00:02.1]} 51. Ng2 {[%clk 0:00:03.8]} 51... e5 {[%clk
0:00:02.9]} 52. Qe4 {[%clk 0:00:04.1]} 52... Ke6 {[%clk 0:00:03.2]} 53. h4
{[%clk 0:00:04.4]} 53... Kd6 {[%clk 0:00:03.8]} 54. Kh3 {[%clk 0:00:04.6]} 54...
Qf6 {[%clk 0:00:04]} 55. h5 {[%clk 0:00:04.5]} 55... Qe6+ {[%clk 0:00:04.4]} 56.
g4 {[%clk 0:00:04.2]} 56... Qf6 {[%clk 0:00:04.5]} 57. Kg3 {[%clk 0:00:03.6]}
57... Qf7 {[%clk 0:00:03.8]} 58. Qg6+ {[%clk 0:00:03.6]} 1-0

[Event "*** SCC Grand Prix: Titled Tuesday Blitz"]
[Site "Chess.com"]
[Date "2020.06.09"]
[Round "10"]
[White "Sam_ChessMood"]
[Black "tigra"]
[Result "0-1"]
[WhiteElo "2828"]
[BlackElo "2762"]
[TimeControl "180+1"]
[EndTime "10:59:00 PDT"]
[Termination "tigra won by resignation"]

1. e4 {[%clk 0:03:00.9]} 1... c5 {[%clk 0:02:58.7]} 2. Nf3 {[%clk 0:03:00.3]}
2... d6 {[%clk 0:02:59.3]} 3. d4 {[%clk 0:02:59.8]} 3... cxd4 {[%clk 0:03:00.2]}
4. Nxd4 {[%clk 0:03:00.4]} 4... Nf6 {[%clk 0:03:00.9]} 5. Nc3 {[%clk 0:03:00.5]}
5... b6 {[%clk 0:03:01]} 6. a4 {[%clk 0:02:37.8]} 6... a6 {[%clk 0:03:00.5]} 7.
g3 {[%clk 0:02:33.2]} 7... e5 {[%clk 0:02:52.3]} 8. Nde2 {[%clk 0:02:24]} 8...
Bb7 {[%clk 0:02:39]} 9. Bg2 {[%clk 0:02:24.1]} 9... b5 {[%clk 0:02:25.6]} 10.
O-O {[%clk 0:02:19.3]} 10... b4 {[%clk 0:02:15.7]} 11. Nd5 {[%clk 0:02:19.3]}
11... Nxd5 {[%clk 0:02:16.3]} 12. exd5 {[%clk 0:02:19.6]} 12... a5 {[%clk
0:02:16.9]} 13. c3 {[%clk 0:02:13.9]} 13... Na6 {[%clk 0:02:10.8]} 14. Be3
{[%clk 0:01:19.9]} 14... Be7 {[%clk 0:02:08.2]} 15. c4 {[%clk 0:01:19.2]} 15...
O-O {[%clk 0:02:05]} 16. b3 {[%clk 0:01:17.9]} 16... Qb8 {[%clk 0:01:36.9]} 17.
f4 {[%clk 0:01:15.6]} 17... Bf6 {[%clk 0:01:36]} 18. f5 {[%clk 0:01:12.9]} 18...
Qd8 {[%clk 0:01:31.5]} 19. h4 {[%clk 0:01:09.4]} 19... Re8 {[%clk 0:01:29.4]}
20. Be4 {[%clk 0:01:09.1]} 20... Rc8 {[%clk 0:01:28.5]} 21. Nc1 {[%clk
0:01:05.8]} 21... Nb8 {[%clk 0:01:18.5]} 22. Nd3 {[%clk 0:01:04.4]} 22... Nd7
{[%clk 0:01:18.9]} 23. Kh2 {[%clk 0:01:00.8]} 23... Bxh4 {[%clk 0:01:17]} 24.
Qh5 {[%clk 0:00:45]} 24... Be7 {[%clk 0:01:01.1]} 25. Nf2 {[%clk 0:00:32.8]}
25... Nf6 {[%clk 0:00:53.5]} 26. Qf3 {[%clk 0:00:32.9]} 26... Rc7 {[%clk
0:00:37.3]} 27. Rh1 {[%clk 0:00:31.8]} 27... Qc8 {[%clk 0:00:31.7]} 28. Rag1
{[%clk 0:00:27.6]} 28... h6 {[%clk 0:00:29]} 29. g4 {[%clk 0:00:26.7]} 29... Nh7
{[%clk 0:00:28.4]} 30. Nh3 {[%clk 0:00:26.5]} 30... Qd8 {[%clk 0:00:18]} 31. g5
{[%clk 0:00:18.8]} 31... Nxg5 {[%clk 0:00:17.7]} 32. Nxg5 {[%clk 0:00:18.9]}
32... Bxg5 {[%clk 0:00:18.6]} 33. Bxg5 {[%clk 0:00:18.5]} 33... hxg5 {[%clk
0:00:19.2]} 34. Qh5 {[%clk 0:00:17.6]} 34... f6 {[%clk 0:00:19.2]} 35. Kg3
{[%clk 0:00:17.8]} 35... Kf8 {[%clk 0:00:16.1]} 36. Qg6 {[%clk 0:00:17.2]} 36...
Rf7 {[%clk 0:00:15.7]} 37. Rh7 {[%clk 0:00:16.4]} 37... Ke7 {[%clk 0:00:15.9]}
38. Rxg7 {[%clk 0:00:15.2]} 38... Rf8 {[%clk 0:00:16.6]} 39. Rh1 {[%clk
0:00:14.3]} 39... Qb6 {[%clk 0:00:12.3]} 40. Kf3 {[%clk 0:00:06.4]} 40... Rxg7
{[%clk 0:00:09.9]} 41. Qxg7+ {[%clk 0:00:06.4]} 41... Rf7 {[%clk 0:00:10.8]} 42.
Qg8 {[%clk 0:00:06]} 42... Qd4 {[%clk 0:00:11.1]} 43. Rh8 {[%clk 0:00:04.7]}
43... g4+ {[%clk 0:00:09.4]} 44. Qxg4 {[%clk 0:00:02.5]} 44... Qc3+ {[%clk
0:00:09.2]} 45. Kg2 {[%clk 0:00:03]} 45... Qb2+ {[%clk 0:00:09.2]} 46. Kf3
{[%clk 0:00:03.4]} 46... Qxb3+ {[%clk 0:00:09.4]} 47. Kg2 {[%clk 0:00:03.9]}
47... Qb2+ {[%clk 0:00:09.6]} 48. Kf3 {[%clk 0:00:04.1]} 48... Qc3+ {[%clk
0:00:08.6]} 49. Kg2 {[%clk 0:00:04.4]} 49... Qd2+ {[%clk 0:00:09]} 50. Kf3
{[%clk 0:00:04.8]} 50... Qd1+ {[%clk 0:00:09.3]} 51. Kg3 {[%clk 0:00:05.4]}
51... Qxg4+ {[%clk 0:00:09.4]} 52. Kxg4 {[%clk 0:00:06]} 52... Rg7+ {[%clk
0:00:07.8]} 53. Kf3 {[%clk 0:00:06.1]} 53... Kd7 {[%clk 0:00:08]} 54. Rf8 {[%clk
0:00:05.8]} 54... Ba6 {[%clk 0:00:06.8]} 55. Rxf6 {[%clk 0:00:05]} 55... Bxc4
{[%clk 0:00:06.4]} 56. Rg6 {[%clk 0:00:05.5]} 56... Rf7 {[%clk 0:00:06.1]} 57.
Kg4 {[%clk 0:00:05.3]} 57... b3 {[%clk 0:00:06.4]} 58. Kg5 {[%clk 0:00:05.8]}
58... b2 {[%clk 0:00:06.8]} 59. f6 {[%clk 0:00:06]} 59... Bxd5 {[%clk
0:00:06.3]} 60. Bf5+ {[%clk 0:00:06.5]} 60... Be6 {[%clk 0:00:06.1]} 61. Rg7
{[%clk 0:00:07]} 61... Rxg7+ {[%clk 0:00:05.1]} 62. fxg7 {[%clk 0:00:06.8]}
62... Bxf5 {[%clk 0:00:05.7]} 63. g8=Q {[%clk 0:00:06.5]} 63... b1=Q {[%clk
0:00:06.1]} 64. Qf7+ {[%clk 0:00:06.7]} 64... Kc6 {[%clk 0:00:06.4]} 65. Qe8+
{[%clk 0:00:07.2]} 65... Kc5 {[%clk 0:00:06.6]} 66. Qc8+ {[%clk 0:00:07]} 66...
Bxc8 {[%clk 0:00:06.3]} 0-1

[Event "*** SCC Grand Prix: Titled Tuesday Blitz"]
[Site "Chess.com"]
[Date "2020.06.09"]
[Round "10"]
[White "iaraldinho"]
[Black "profofchess"]
[Result "1/2-1/2"]
[WhiteElo "2610"]
[BlackElo "2448"]
[TimeControl "180+1"]
[EndTime "10:59:03 PDT"]
[Termination "Game drawn by stalemate"]

1. e4 {[%clk 0:03:00.9]} 1... e6 {[%clk 0:03:00.1]} 2. d4 {[%clk 0:03:00.7]}
2... d5 {[%clk 0:03:00.3]} 3. Nc3 {[%clk 0:03:01]} 3... Bb4 {[%clk 0:02:59.8]}
4. e5 {[%clk 0:03:01]} 4... c5 {[%clk 0:02:59.4]} 5. a3 {[%clk 0:03:01.5]} 5...
Bxc3+ {[%clk 0:02:59.3]} 6. bxc3 {[%clk 0:03:02.4]} 6... Ne7 {[%clk 0:02:58]} 7.
Nf3 {[%clk 0:03:01]} 7... b6 {[%clk 0:02:57.4]} 8. a4 {[%clk 0:03:01.2]} 8...
Ba6 {[%clk 0:02:54.4]} 9. Bb5+ {[%clk 0:03:00.5]} 9... Bxb5 {[%clk 0:02:54.1]}
10. axb5 {[%clk 0:03:01.4]} 10... a5 {[%clk 0:02:54.6]} 11. bxa6 {[%clk
0:03:02.3]} 11... Rxa6 {[%clk 0:02:54.5]} 12. Rxa6 {[%clk 0:03:02.1]} 12... Nxa6
{[%clk 0:02:55.4]} 13. O-O {[%clk 0:03:02.4]} 13... h6 {[%clk 0:02:27.8]} 14. c4
{[%clk 0:03:00.3]} 14... O-O {[%clk 0:02:23.2]} 15. cxd5 {[%clk 0:02:59.7]}
15... Qxd5 {[%clk 0:02:18.1]} 16. Qe2 {[%clk 0:02:59.7]} 16... c4 {[%clk
0:02:06.8]} 17. Ba3 {[%clk 0:02:57.7]} 17... Re8 {[%clk 0:02:05.8]} 18. Rb1
{[%clk 0:02:52.4]} 18... b5 {[%clk 0:02:01.2]} 19. Bxe7 {[%clk 0:02:48.5]} 19...
Rxe7 {[%clk 0:02:00.8]} 20. c3 {[%clk 0:02:48.8]} 20... Rb7 {[%clk 0:01:51.9]}
21. Nd2 {[%clk 0:02:48.6]} 21... Nc7 {[%clk 0:01:39.9]} 22. f3 {[%clk
0:02:48.4]} 22... Ra7 {[%clk 0:01:37.2]} 23. Ne4 {[%clk 0:02:46.1]} 23... Ra3
{[%clk 0:01:29.6]} 24. Qb2 {[%clk 0:02:37.8]} 24... Rb3 {[%clk 0:01:19.9]} 25.
Qa1 {[%clk 0:02:36.3]} 25... b4 {[%clk 0:00:54.4]} 26. Rxb3 {[%clk 0:02:27.2]}
26... cxb3 {[%clk 0:00:54.5]} 27. cxb4 {[%clk 0:02:26.4]} 27... Nb5 {[%clk
0:00:49.2]} 28. Kf2 {[%clk 0:02:03]} 28... Qc4 {[%clk 0:00:34.4]} 29. Nd2 {[%clk
0:01:50.4]} 29... Qc2 {[%clk 0:00:27.6]} 30. Qa8+ {[%clk 0:01:49.5]} 30... Kh7
{[%clk 0:00:27.1]} 31. Qe4+ {[%clk 0:01:47.9]} 31... g6 {[%clk 0:00:15.3]} 32.
Qxc2 {[%clk 0:01:28.8]} 32... bxc2 {[%clk 0:00:16.2]} 33. Nb3 {[%clk 0:01:29]}
33... Nxd4 {[%clk 0:00:15.7]} 34. Nc1 {[%clk 0:01:29.5]} 34... Nc6 {[%clk
0:00:13.4]} 35. b5 {[%clk 0:01:29.6]} 35... Nxe5 {[%clk 0:00:13.5]} 36. b6
{[%clk 0:01:29.7]} 36... Nd7 {[%clk 0:00:13.3]} 37. b7 {[%clk 0:01:30]} 37...
Kg7 {[%clk 0:00:13.4]} 38. Ke3 {[%clk 0:01:30.5]} 38... Kf6 {[%clk 0:00:12.6]}
39. Kd3 {[%clk 0:01:30.8]} 39... Ke5 {[%clk 0:00:11.9]} 40. Kxc2 {[%clk
0:01:28.5]} 40... Kd6 {[%clk 0:00:11.9]} 41. Nb3 {[%clk 0:01:13.6]} 41... Kc7
{[%clk 0:00:11.1]} 42. Na5 {[%clk 0:01:13.1]} 42... Nc5 {[%clk 0:00:04.5]} 43.
Kc3 {[%clk 0:01:09.7]} 43... Nxb7 {[%clk 0:00:03.8]} 44. Nc4 {[%clk 0:01:08.8]}
44... Nd6 {[%clk 0:00:03.3]} 45. Ne5 {[%clk 0:01:07.6]} 45... Kd8 {[%clk
0:00:02.1]} 46. Kd4 {[%clk 0:01:06.1]} 46... Ke7 {[%clk 0:00:02.4]} 47. g4
{[%clk 0:01:04.6]} 47... h5 {[%clk 0:00:01.6]} 48. gxh5 {[%clk 0:01:01.3]} 48...
gxh5 {[%clk 0:00:02.5]} 49. Ke3 {[%clk 0:01:01.2]} 49... f6 {[%clk 0:00:03.2]}
50. Nc6+ {[%clk 0:00:57]} 50... Kd7 {[%clk 0:00:03.2]} 51. Nb4 {[%clk
0:00:55.7]} 51... e5 {[%clk 0:00:03.8]} 52. f4 {[%clk 0:00:52.9]} 52... Ke6
{[%clk 0:00:04.7]} 53. Nd3 {[%clk 0:00:45.9]} 53... e4 {[%clk 0:00:05.1]} 54.
Nf2 {[%clk 0:00:42.8]} 54... Kf5 {[%clk 0:00:06]} 55. Kd4 {[%clk 0:00:40.9]}
55... Kxf4 {[%clk 0:00:05.8]} 56. Kd5 {[%clk 0:00:40.7]} 56... e3 {[%clk
0:00:06]} 57. Nd3+ {[%clk 0:00:40.2]} 57... Kf3 {[%clk 0:00:04.9]} 58. Kxd6
{[%clk 0:00:40.5]} 58... Kg2 {[%clk 0:00:04.1]} 59. h4 {[%clk 0:00:38.1]} 59...
Kg3 {[%clk 0:00:04.3]} 60. Ke6 {[%clk 0:00:38.1]} 60... Kxh4 {[%clk 0:00:04.4]}
61. Kf5 {[%clk 0:00:09]} 61... Kg3 {[%clk 0:00:04.8]} 62. Ke4 {[%clk 0:00:09.2]}
62... e2 {[%clk 0:00:02.7]} 63. Ke3 {[%clk 0:00:08.1]} 63... Kg2 {[%clk
0:00:02.6]} 64. Kxe2 {[%clk 0:00:07.8]} 64... h4 {[%clk 0:00:02.9]} 65. Nf4+
{[%clk 0:00:06.7]} 65... Kg3 {[%clk 0:00:03.3]} 66. Nh5+ {[%clk 0:00:06.5]}
66... Kg4 {[%clk 0:00:02.6]} 67. Nxf6+ {[%clk 0:00:06.3]} 67... Kf5 {[%clk
0:00:03.3]} 68. Nh5 {[%clk 0:00:05.7]} 68... h3 {[%clk 0:00:04]} 69. Kf2 {[%clk
0:00:05.1]} 69... Kg4 {[%clk 0:00:04.9]} 70. Kg1 {[%clk 0:00:04.9]} 70... Kxh5
{[%clk 0:00:05.8]} 71. Kh2 {[%clk 0:00:05.8]} 71... Kg4 {[%clk 0:00:06.5]} 72.
Kh1 {[%clk 0:00:05.8]} 72... Kh4 {[%clk 0:00:07.4]} 73. Kg1 {[%clk 0:00:06.2]}
73... Kg3 {[%clk 0:00:08.3]} 74. Kh1 {[%clk 0:00:05]} 74... h2 {[%clk
0:00:09.2]} 1/2-1/2